bitfinex/quotes_SOLUSD_20250714
["timestamp","ask_amount","ask_price","bid_price","bid_amount"]
[1752518822932,0.72,163.87,163.83,16.78468397]
[1752518823344,0.66,163.86,163.83,16.78468397]
[1752518823555,0.66,163.85,163.81,0.71]
[1752518823735,7.57608622,163.85,163.81,6.10463341]
[1752518824080,0.66,163.84,163.81,6.10463341]
[1752518824778,0.66,163.84,163.81,95.5846334]
[1752518825058,0.66,163.83,163.81,89.47999999]
[1752518825248,6.91608622,163.83,163.82,16.78468397]
[1752518825442,7.57608622,163.83,163.82,16.78468397]
[1752518827353,7.57608622,163.83,163.79,16.78468397]
[1752518827663,6.91608622,163.81,163.79,16.78468397]
[1752518827863,0.66,163.81,163.79,16.78468397]
[1752518828854,7.57608622,163.82,163.78,0.03]
[1752518829262,0.66,163.81,163.78,6.13570905]
[1752518829456,0.66,163.81,163.78,6.84570905]
[1752518829668,6.91608622,163.82,163.78,6.84570905]
[1752518829870,0.06,163.84,163.81,16.78468397]
[1752518830176,0.72,163.84,163.81,16.78468397]
[1752518830338,0.66,163.83,163.79,17.49468397]
[1752518830543,13.07971821,163.84,163.79,23.70077019]
[1752518830774,0.66,163.82,163.79,23.70077019]
[1752518831372,0.66,163.82,163.79,29.80607187]
[1752518831834,0.72,163.84,163.81,16.78468397]
[1752518832041,0.06,163.84,163.83,23.70077019]
[1752518832744,0.06,163.84,163.83,24.41077019]
[1752518832947,0.06,163.84,163.82,16.78468397]
[1752518833157,0.72,163.84,163.82,16.78468397]
[1752518833465,0.66,163.83,163.82,16.78468397]
[1752518833843,0.06,163.84,163.82,16.78468397]
[1752518834247,0.66,163.83,163.82,16.78468397]
[1752518835947,13.67997439,163.83,163.82,16.78468397]
[1752518836766,13.67997439,163.83,163.79,16.78468397]
[1752518836948,0.66,163.82,163.79,16.78468397]
[1752518837667,0.66,163.82,163.79,22.88993665]
[1752518837851,6.91608622,163.83,163.79,23.59993665]
[1752518838160,0.06,163.84,163.79,29.80602287]
[1752518838369,7.63608622,163.84,163.81,16.78468397]
[1752518839156,13.73965289,163.84,163.81,16.78468397]
[1752518839550,0.66,163.83,163.79,29.80602287]
[1752518839746,0.66,163.83,163.79,30.51602287]
[1752518840854,7.63608622,163.84,163.81,16.78468397]
[1752518841059,0.72,163.84,163.81,16.78468397]
[1752518841379,0.06,163.84,163.81,17.49468397]
[1752518842673,0.66,163.83,163.79,24.41077019]
[1752518842971,0.66,163.83,163.79,30.5160925]
[1752518843873,6.97608622,163.84,163.79,29.8060925]
[1752518844174,7.63608622,163.84,163.81,16.78468397]
[1752518844553,0.06,163.84,163.81,16.78468397]
[1752518844874,0.06,163.84,163.83,16.78468397]
[1752518845182,0.06,163.84,163.81,24.41077019]
[1752518845345,0.72,163.84,163.81,24.41077019]
[1752518845550,0.72,163.84,163.81,16.78468397]
[1752518845551,0.66,163.83,163.81,16.78468397]
[1752518845953,13.07961759,163.84,163.81,16.78468397]
[1752518846171,7.57608622,163.82,163.81,16.78468397]
[1752518847973,0.66,163.82,163.81,16.78468397]
[1752518850351,13.68034699,163.82,163.81,16.78468397]
[1752518852804,13.68034699,163.82,163.78,0.72]
[1752518852805,13.73034699,163.82,163.78,16.81468397]
[1752518853004,6.91608622,163.79,163.78,0.03]
[1752518853406,7.62608622,163.79,163.78,0.03]
[1752518855118,13.73146505,163.79,163.78,0.03]
[1752518859424,15.26656505,163.79,163.78,0.03]
[1752518859618,21.88546505,163.79,163.78,0.03]
[1752518859824,44.06499836,163.79,163.75,0.03]
[1752518860000,13.83217244,163.76,163.75,0.03]
[1752518860195,44.91217244,163.76,163.75,0.03]
[1752518860415,45.62217244,163.76,163.75,0.03]
[1752518860933,38.70608622,163.76,163.75,0.03]
[1752518861719,31.08,163.77,163.75,0.03]
[1752518862021,37.99608622,163.77,163.75,0.03]
[1752518862728,38.70608622,163.77,163.75,0.03]
[1752518865026,6.91608622,163.76,163.75,0.03]
[1752518865223,13.73258353,163.76,163.75,0.03]
[1752518866730,20.64866975,163.76,163.75,0.03]
[1752518868420,13.73258353,163.76,163.75,0.03]
[1752518868723,14.23258353,163.76,163.75,0.03]
[1752518873614,0.5,163.76,163.75,0.03]
[1752518873930,0.5,163.76,163.75,17.50468397]
[1752518874133,31.58,163.76,163.75,17.50468397]
[1752518875728,31.58,163.76,163.75,24.42077019]
[1752518876028,0.5,163.76,163.75,30.52764041]
[1752518877014,0.5,163.76,163.75,31.13832743]
[1752518877227,0.06,163.78,163.76,16.78468397]
[1752518877434,0.06,163.78,163.77,6.91608622]
[1752518877636,0.06,163.78,163.77,13.71221066]
[1752518879651,0.06,163.78,163.77,30.49689463]
[1752518879934,0.06,163.84,163.77,52.48331817]
[1752518880112,0.06,163.84,163.83,6.91608622]
[1752518880516,0.06,163.84,163.83,16.78468397]
[1752518881138,7.64608622,163.84,163.8,26.0]
[1752518881436,0.67,163.83,163.81,16.78468397]
[1752518881737,31.75,163.83,163.81,16.78468397]
[1752518882418,31.08,163.83,163.81,16.78468397]
[1752518883413,31.75,163.83,163.81,16.78468397]
[1752518884116,0.67,163.82,163.79,16.78468397]
[1752518885016,37.99608622,163.83,163.79,17.45468397]
[1752518885346,44.10011362,163.83,163.79,16.78468397]
[1752518885638,7.58608622,163.82,163.78,16.78468397]
[1752518885840,0.67,163.81,163.78,16.78468397]
[1752518886532,38.66608622,163.8,163.78,16.78468397]
[1752518887238,7.58608622,163.79,163.78,16.78468397]
[1752518887550,31.08,163.8,163.78,16.78468397]
[1752518887551,38.66608622,163.8,163.78,16.78468397]
[1752518887749,38.66608622,163.8,163.75,13.72282155]
[1752518887750,6.91608622,163.79,163.75,0.03]
[1752518887920,6.91608622,163.78,163.75,0.03]
[1752518888249,7.58608622,163.78,163.75,0.03]
[1752518888627,6.91608622,163.77,163.75,0.03]
[1752518889032,37.99608622,163.77,163.75,0.03]
[1752518889232,7.58608622,163.76,163.75,0.03]
[1752518889538,37.99608622,163.77,163.75,0.03]
[1752518889739,38.66608622,163.77,163.75,0.03]
[1752518890132,6.91608622,163.76,163.75,0.03]
[1752518890736,7.58608622,163.76,163.75,0.03]
[1752518892736,13.69258353,163.76,163.75,0.03]
[1752518898739,20.60866975,163.76,163.75,0.03]
[1752518898938,13.69258353,163.76,163.75,0.03]
[1752518900566,13.02258353,163.76,163.75,0.03]
[1752518900735,44.10258353,163.76,163.75,0.03]
[1752518901358,45.27258353,163.76,163.75,0.03]
[1752518901943,52.18866975,163.76,163.75,0.03]
[1752518908784,52.18866975,163.76,163.74,0.03]
[1752518908979,7.60608622,163.75,163.74,0.03]
[1752518909565,33.60608622,163.75,163.74,0.03]
[1752518911197,26.0,163.73,163.72,0.2]
[1752518911483,63.99608622,163.73,163.72,0.2]
[1752518911664,64.68608622,163.73,163.72,0.2]
[1752518912680,70.91828622,163.73,163.72,1e-08]
[1752518913265,77.02590241,163.73,163.72,1e-08]
[1752518913468,92.2949429,163.73,163.7,0.03]
[1752518913664,6.91608622,163.71,163.7,0.03]
[1752518913982,31.08,163.71,163.7,0.03]
[1752518914166,37.99608622,163.71,163.7,0.03]
[1752518915377,31.08,163.71,163.7,0.03]
[1752518915765,31.08,163.71,163.7,0.72]
[1752518916175,31.08,163.71,163.7,0.03]
[1752518917483,37.99608622,163.71,163.7,0.03]
[1752518920483,31.08,163.71,163.7,17.50468397]
[1752518921772,0.5,163.76,163.71,16.78468397]
[1752518921980,13.0222209,163.77,163.73,16.78468397]
[1752518922275,31.08,163.76,163.74,0.69]
[1752518922877,7.60608622,163.8,163.76,16.78468397]
[1752518923188,37.99608622,163.79,163.76,17.47468397]
[1752518923383,31.08,163.78,163.77,0.69]
[1752518923688,31.08,163.78,163.77,17.47468397]
[1752518925396,31.08,163.79,163.77,17.47468397]
[1752518925692,31.08,163.79,163.78,0.69]
[1752518926190,31.08,163.79,163.78,17.47468397]
[1752518927196,31.08,163.79,163.76,0.69]
[1752518927382,37.99608622,163.79,163.77,16.78468397]
[1752518927575,31.08,163.79,163.77,16.78468397]
[1752518928096,7.60608622,163.78,163.75,16.78468397]
[1752518928295,31.08,163.77,163.75,16.78468397]
[1752518929494,31.08,163.77,163.75,0.69]
[1752518930777,31.08,163.77,163.74,16.78468397]
[1752518931198,31.08,163.77,163.74,17.47468397]
[1752518932079,44.10231115,163.77,163.74,17.47468397]
[1752518932275,6.91608622,163.75,163.7,0.03]
[1752518932476,6.91608622,163.72,163.7,16.81468397]
[1752518932790,6.91608622,163.71,163.7,16.81468397]
[1752518932987,37.99608622,163.72,163.7,16.81468397]
[1752518933496,6.91608622,163.71,163.7,0.03]
[1752518933680,7.60608622,163.71,163.7,0.03]
[1752518933884,13.71444856,163.71,163.7,0.03]
[1752518938879,14.21444856,163.71,163.7,0.03]
[1752518939588,14.21444856,163.71,163.7,1e-08]
[1752518939793,26.0,163.69,163.68,0.03]
[1752518940102,77.02128112,163.69,163.68,0.03]
[1752518940403,77.73128112,163.69,163.68,0.03]
[1752518942581,77.73128112,163.69,163.67,0.2]
[1752518942904,14.54217244,163.68,163.67,0.2]
[1752518943204,14.54217244,163.68,163.66,0.03]
[1752518943500,64.70608622,163.67,163.66,0.03]
[1752518943898,33.62608622,163.67,163.66,0.03]
[1752518944100,64.70608622,163.67,163.66,0.03]
[1752518944309,64.72608622,163.67,163.66,0.03]
[1752518944704,70.83594141,163.67,163.66,0.03]
[1752518945395,93.7704794,163.67,163.58,16.98468397]
[1752518945599,6.91608622,163.65,163.58,0.2]
[1752518945900,38.03608622,163.65,163.58,16.98468397]
[1752518946108,38.74608622,163.65,163.58,16.98468397]
[1752518946291,7.62608622,163.64,163.58,16.98468397]
[1752518946683,13.73706153,163.64,163.58,16.98468397]
[1752518947304,13.73706153,163.64,163.58,0.2]
[1752518947488,55.0144998,163.64,163.58,0.2]
[1752518947682,6.91608622,163.59,163.58,0.2]
[1752518947878,38.03608622,163.59,163.58,0.2]
[1752518948980,44.8589293,163.59,163.58,0.2]
[1752518949403,44.1489293,163.59,163.58,0.2]
[1752518950094,44.8589293,163.59,163.58,0.2]
[1752518952295,26.0,163.58,163.53,0.2]
[1752518952500,6.91608622,163.54,163.53,0.2]
[1752518952703,38.05608622,163.54,163.53,0.2]
[1752518953007,44.17079821,163.54,163.53,0.2]
[1752518953208,44.88079821,163.54,163.53,0.2]
[1752518953408,70.88079821,163.54,163.53,0.2]
[1752518953995,44.17079821,163.54,163.53,0.2]
[1752518954198,44.88079821,163.54,163.53,0.2]
[1752518954589,13.03079821,163.54,163.53,0.2]
[1752518954910,18.52478622,163.6,163.53,0.2]
[1752518954911,23.80655469,163.6,163.53,0.2]
[1752518955113,37.96284308,163.59,163.54,0.71]
[1752518955291,6.91608622,163.57,163.54,0.71]
[1752518955492,6.91608622,163.58,163.55,16.78468397]
[1752518955790,6.11100337,163.64,163.57,23.70077019]
[1752518955996,2.2802,163.65,163.57,23.70077019]
[1752518955997,6.82073514,163.65,163.59,16.78468397]
[1752518956295,6.91608622,163.63,163.59,17.49468397]
[1752518956497,38.09608622,163.62,163.6,0.71]
[1752518956702,6.91608622,163.61,163.58,16.78468397]
[1752518956909,31.18,163.6,163.58,16.78468397]
[1752518957091,11.50646593,163.59,163.57,0.71]
[1752518957306,42.68646593,163.58,163.55,0.71]
[1752518957492,42.68646593,163.58,163.56,16.78468397]
[1752518957701,31.18,163.58,163.57,0.71]
[1752518957894,11.50646593,163.6,163.57,0.71]
[1752518958125,42.68646593,163.59,163.57,0.71]
[1752518958901,12.21646593,163.58,163.53,0.2]
[1752518959086,31.18,163.57,163.53,0.2]
[1752518959290,11.50646593,163.54,163.53,0.2]
[1752518959485,31.18,163.54,163.53,0.91]
[1752518959688,42.68646593,163.54,163.53,0.2]
[1752518960162,31.18,163.54,163.53,0.2]
[1752518960301,31.18,163.54,163.53,0.91]
[1752518960626,11.50646593,163.55,163.53,0.91]
[1752518960795,31.26,163.54,163.53,0.91]
[1752518961510,31.26,163.55,163.54,16.78468397]
[1752518961908,31.26,163.55,163.54,17.49468397]
[1752518964308,31.26,163.55,163.53,6.31495042]
[1752518964508,31.26,163.55,163.53,0.2]
[1752518964731,11.50646593,163.54,163.53,0.2]
[1752518964920,11.50646593,163.54,163.53,0.91]
[1752518965128,42.76646593,163.55,163.53,0.2]
[1752518965629,11.50646593,163.54,163.53,0.2]
[1752518965833,42.76646593,163.55,163.53,0.2]
[1752518966336,11.50646593,163.54,163.53,0.2]
[1752518966731,12.21646593,163.54,163.53,0.2]
[1752518967240,11.50646593,163.54,163.53,0.2]
[1752518967820,42.76646593,163.55,163.53,0.2]
[1752518968027,42.76646593,163.55,163.53,0.91]
[1752518968834,42.76646593,163.55,163.53,0.2]
[1752518969728,12.22646593,163.54,163.53,0.2]
[1752518970225,0.72,163.54,163.53,0.2]
[1752518970556,12.22646593,163.54,163.53,0.2]
[1752518971137,17.62117792,163.54,163.53,0.2]
[1752518971438,18.34117792,163.54,163.53,0.2]
[1752518973831,11.50646593,163.54,163.53,0.2]
[1752518974035,43.08646593,163.54,163.53,0.2]
[1752518974826,11.50646593,163.54,163.53,0.2]
[1752518975037,43.08646593,163.54,163.53,0.2]
[1752518975237,11.50646593,163.55,163.53,0.87]
[1752518975431,31.58,163.54,163.53,0.87]
[1752518975645,31.58,163.54,163.53,0.2]
[1752518977647,43.08646593,163.54,163.53,0.2]
[1752518978124,11.50646593,163.54,163.53,0.2]
[1752518978326,31.56,163.54,163.53,0.2]
[1752518978527,43.06646593,163.54,163.53,0.2]
[1752518978939,38.46926051,163.54,163.53,0.2]
[1752518979330,31.56,163.54,163.53,0.2]
[1752518979946,7.62926051,163.58,163.53,23.76976988]
[1752518980254,31.56,163.57,163.54,17.45468397]
[1752518980551,31.56,163.57,163.55,0.67]
[1752518980751,31.56,163.57,163.55,7.57926051]
[1752518980958,31.56,163.57,163.56,0.67]
[1752518981137,0.06,163.59,163.56,17.45468397]
[1752518981325,31.58,163.58,163.56,17.45468397]
[1752518981855,31.58,163.58,163.56,16.78468397]
[1752518982057,31.58,163.58,163.56,22.89850468]
[1752518982261,31.58,163.58,163.57,0.67]
[1752518982627,31.58,163.58,163.57,7.57926051]
[1752518983130,31.58,163.58,163.57,0.67]
[1752518983842,31.58,163.58,163.55,6.78431135]
[1752518984150,31.58,163.58,163.56,17.45468397]
[1752518984445,31.58,163.58,163.56,16.78468397]
[1752518985347,38.48926051,163.58,163.55,16.78468397]
[1752518986156,6.90926051,163.56,163.54,16.78468397]
[1752518986349,6.90926051,163.55,163.53,0.2]
[1752518986558,31.56,163.54,163.53,0.2]
[1752518986752,31.56,163.54,163.53,17.65468397]
[1752518988653,31.56,163.54,163.53,23.76976988]
[1752518988951,31.56,163.54,163.53,17.65468397]
[1752518989537,31.56,163.54,163.53,30.67903039]
[1752518989748,31.56,163.56,163.53,30.67903039]
[1752518989934,31.56,163.56,163.55,16.78468397]
[1752518990136,31.56,163.56,163.53,23.09976988]
[1752518990335,31.56,163.56,163.53,23.76976988]
[1752518990530,6.90926051,163.57,163.53,23.76976988]
[1752518990851,6.83326456,163.58,163.53,30.00903039]
[1752518990852,31.54,163.56,163.53,30.00903039]
[1752518991062,31.54,163.56,163.55,16.78468397]
[1752518991262,0.06,163.59,163.55,24.36394448]
[1752518991449,31.54,163.58,163.57,16.78468397]
[1752518992065,31.54,163.58,163.57,17.45468397]
[1752518992232,31.54,163.58,163.57,16.78468397]
[1752518992856,31.54,163.58,163.57,30.47753499]
[1752518993035,31.54,163.58,163.57,23.56827448]
[1752518993234,31.54,163.58,163.57,16.78468397]
[1752518996055,31.54,163.58,163.57,23.56827448]
[1752518996237,0.06,163.59,163.57,30.47753499]
[1752518996436,0.06,163.59,163.58,0.67]
[1752518996934,0.06,163.59,163.58,13.69247728]
[1752518997358,0.06,163.59,163.58,7.57926051]
[1752518997562,0.06,163.59,163.58,13.69247728]
[1752519000244,0.06,163.59,163.55,16.78468397]
[1752519000245,7.66926051,163.59,163.55,16.78468397]
[1752519000458,0.7,163.58,163.55,16.78468397]
[1752519001041,7.60926051,163.58,163.55,16.78468397]
[1752519001441,6.90926051,163.58,163.55,16.78468397]
[1752519001646,0.7,163.57,163.55,16.78468397]
[1752519001847,0.06,163.59,163.56,7.57926051]
[1752519002066,0.06,163.59,163.58,23.69394448]
[1752519002649,0.06,163.59,163.58,24.36394448]
[1752519004376,0.06,163.59,163.58,120.07716125]
[1752519004870,0.06,163.59,163.58,151.57716125]
[1752519005876,0.06,163.59,163.58,120.07716125]
[1752519007271,0.06,163.59,163.58,113.16790074]
[1752519007462,0.06,163.59,163.58,112.49790074]
[1752519008077,0.06,163.59,163.58,22.89790074]
[1752519008277,0.06,163.59,163.58,16.78468397]
[1752519009354,0.06,163.59,163.58,29.80716125]
[1752519009662,0.06,163.59,163.58,30.47716125]
[1752519012076,7.66926051,163.59,163.58,16.78468397]
[1752519012259,8.16926051,163.59,163.58,16.78468397]
[1752519014175,0.56,163.59,163.58,16.78468397]
[1752519015257,1.26,163.59,163.58,16.78468397]
[1752519016484,14.28210359,163.59,163.58,16.78468397]
[1752519016691,14.28210359,163.59,163.54,134.12383659]
[1752519016692,8.16926051,163.59,163.55,16.78468397]
[1752519016894,0.7,163.58,163.55,16.78468397]
[1752519019374,13.5821354,163.59,163.55,17.45468397]
[1752519019579,0.56,163.59,163.57,16.78468397]
[1752519019890,0.56,163.59,163.58,6.90926051]
[1752519020064,0.56,163.59,163.57,17.45468397]
[1752519020270,0.56,163.59,163.57,24.36394448]
[1752519020975,0.56,163.59,163.57,30.47750814]
[1752519021172,0.56,163.59,163.58,24.36394448]
[1752519021786,0.06,163.59,163.58,17.45468397]
[1752519021978,0.06,163.59,163.58,16.78468397]
[1752519022191,0.76,163.59,163.58,16.78468397]
[1752519023594,14.28210359,163.59,163.56,0.03]
[1752519023793,14.28210359,163.59,163.56,16.81468397]
[1752519023794,6.90926051,163.58,163.56,16.81468397]
[1752519024088,0.7,163.57,163.56,16.81468397]
[1752519024669,13.72285102,163.57,163.56,0.03]
[1752519027891,13.72285102,163.57,163.47,13.69648808]
[1752519027892,13.72285102,163.57,163.38,30.6018]
[1752519028114,13.81852102,163.39,163.19,4.97871821]
[1752519028418,10.0,163.25,163.19,0.67]
[1752519028709,6.90926051,163.24,163.2,33.28]
[1752519028886,10.67,163.28,163.21,0.69]
[1752519029084,10.09803288,163.29,163.22,7.52193052]
[1752519029269,3.18877237,163.29,163.23,0.69]
[1752519029473,6.90926051,163.27,163.23,0.69]
[1752519029676,3.18877237,163.29,163.26,6.90926051]
[1752519029879,3.18877237,163.29,163.28,6.90926051]
[1752519030078,2.31877237,163.29,163.28,57.12394448]
[1752519030294,2.31877237,163.29,163.28,70.15765378]
[1752519030493,58.91377212,163.38,163.32,42.78468397]
[1752519030697,58.91377212,163.38,163.37,23.69394448]
[1752519031012,10.0,163.43,163.38,16.78468397]
[1752519031311,10.0,163.41,163.37,11.52750457]
[1752519031499,10.0,163.42,163.4,11.52750457]
[1752519031696,0.67,163.44,163.41,11.52750457]
[1752519032010,0.67,163.44,163.4,11.52750457]
[1752519032011,10.0,163.44,163.43,11.52750457]
[1752519032217,10.0,163.47,163.43,11.52750457]
[1752519032386,16.11658962,163.49,163.4,37.52750457]
[1752519032725,16.78658962,163.49,163.42,16.78468397]
[1752519033295,10.0,163.5,163.44,16.78468397]
[1752519033492,10.0,163.51,163.46,16.78468397]
[1752519033702,10.0,163.51,163.5,11.52750457]
[1752519033901,10.0,163.51,163.5,44.82750457]
[1752519034287,6.7854944,163.52,163.5,44.82750457]
[1752519034483,10.0,163.54,163.51,37.92750457]
[1752519034484,16.115054,163.54,163.51,37.92750457]
[1752519034785,16.115054,163.54,163.53,11.52750457]
[1752519035002,10.0,163.54,163.53,11.52750457]
[1752519035292,10.67,163.58,163.53,11.52750457]
[1752519035495,10.67,163.58,163.57,11.52750457]
[1752519035496,10.0,163.58,163.57,11.52750457]
[1752519036001,16.11357189,163.58,163.57,11.52750457]
[1752519036200,16.11357189,163.58,163.57,44.80750457]
[1752519036397,16.11357189,163.58,163.57,11.52750457]
[1752519036713,16.78357189,163.58,163.57,44.80750457]
[1752519037093,16.78357189,163.58,163.57,11.52750457]
[1752519037298,16.78357189,163.58,163.57,44.78750457]
[1752519037502,16.78357189,163.58,163.57,33.26]
[1752519037805,16.78357189,163.58,163.57,44.78750457]
[1752519038001,10.0,163.52,163.51,26.4]
[1752519038201,10.0,163.55,163.51,72.09750457]
[1752519038408,16.11433812,163.55,163.54,11.52750457]
[1752519038616,31.40018342,163.55,163.53,11.52750457]
[1752519038797,11.28154597,163.54,163.51,26.4]
[1752519039111,10.0,163.52,163.51,37.92750457]
[1752519039314,10.0,163.52,163.51,59.88]
[1752519039501,10.61154597,163.52,163.51,59.88]
[1752519039699,22.80905054,163.52,163.51,59.86]
[1752519040005,10.0,163.51,163.5,26.4]
[1752519040191,21.52750457,163.51,163.5,59.86]
[1752519040397,28.31333846,163.51,163.5,59.86]
[1752519040712,16.11583389,163.51,163.5,59.86]
[1752519040903,28.31333846,163.51,163.5,59.86]
[1752519041101,33.17672759,163.51,163.5,59.86]
[1752519045415,16.11583389,163.51,163.5,76.2508937]
[1752519045610,16.11583389,163.51,163.5,59.86]
[1752519046009,16.17583389,163.51,163.5,26.4]
[1752519046313,33.23672759,163.51,163.5,59.74]
[1752519047410,33.23672759,163.51,163.5,26.4]
[1752519047614,10.0,163.45,163.42,16.3908937]
[1752519047920,10.0,163.44,163.43,26.4]
[1752519048110,10.0,163.44,163.43,59.72]
[1752519048620,10.0,163.44,163.43,26.4]
[1752519048797,10.0,163.44,163.43,59.72]
[1752519048992,16.11845325,163.44,163.43,59.72]
[1752519049212,10.0,163.44,163.43,59.72]
[1752519055107,32.50934695,163.44,163.43,26.4]
[1752519055305,33.17934695,163.44,163.43,59.58]
[1752519055612,33.79089292,163.44,163.43,59.58]
[1752519058713,10.61154597,163.44,163.43,59.58]
[1752519058915,33.12089292,163.44,163.43,59.58]
[1752519059423,27.00243967,163.44,163.43,59.58]
[1752519060506,10.0,163.44,163.43,60.3]
[1752519060832,10.0,163.44,163.43,59.58]
[1752519062743,10.0,163.44,163.43,60.3]
[1752519063229,10.0,163.44,163.43,59.58]
[1752519064131,10.0,163.44,163.43,71.82808961]
[1752519064332,10.0,163.44,163.43,60.3]
[1752519064540,10.0,163.44,163.43,77.94691724]
[1752519064833,10.0,163.44,163.43,71.82808961]
[1752519067014,10.0,163.44,163.43,77.94691724]
[1752519067339,10.0,163.44,163.43,71.62808961]
[1752519067537,10.0,163.44,163.43,77.74691724]
[1752519067932,10.0,163.44,163.43,77.77691724]
[1752519068939,10.0,163.44,163.43,71.65808961]
[1752519069236,18.0,163.46,163.43,71.65808961]
[1752519069434,10.0,163.44,163.43,70.93808961]
[1752519069631,10.0,163.44,163.43,26.43]
[1752519069822,21.52808961,163.44,163.43,59.37]
[1752519070329,21.52808961,163.44,163.43,26.43]
[1752519070330,28.33654286,163.44,163.43,26.43]
[1752519070535,54.33654286,163.44,163.43,59.37]
[1752519070733,204.48489964,163.44,163.43,59.37]
[1752519071118,10.0,163.39,163.38,0.03]
[1752519071312,21.52808961,163.39,163.38,32.97]
[1752519071931,27.64841521,163.39,163.38,32.95]
[1752519072237,21.52808961,163.39,163.38,32.95]
[1752519072430,27.64841521,163.39,163.38,32.95]
[1752519072765,10.0,163.39,163.38,32.95]
[1752519072942,27.64841521,163.39,163.38,32.95]
[1752519074122,10.0,163.39,163.38,32.95]
[1752519074441,10.0,163.39,163.38,45.19808961]
[1752519074742,10.0,163.39,163.38,32.95]
[1752519076122,18.0,163.39,163.38,32.95]
[1752519076546,18.0,163.39,163.38,33.67]
[1752519076937,18.0,163.39,163.38,32.95]
[1752519077128,18.0,163.39,163.38,33.67]
[1752519077826,8.0,163.39,163.38,51.31878981]
[1752519078130,10.0,163.4,163.38,51.31878981]
[1752519078334,10.0,163.4,163.39,12.24808961]
[1752519079349,10.0,163.4,163.39,0.72]
[1752519079942,10.0,163.4,163.38,32.95]
[1752519084563,10.0,163.39,163.38,33.67]
[1752519086468,16.73187157,163.39,163.38,32.95]
[1752519086967,28.25996118,163.39,163.38,0.03]
[1752519087168,28.25996118,163.39,163.38,32.75]
[1752519087677,28.94996118,163.39,163.38,0.03]
[1752519087853,28.94996118,163.39,163.38,32.73]
[1752519090255,10.61154597,163.39,163.38,32.73]
[1752519090454,16.73187157,163.39,163.38,32.73]
[1752519090654,28.95996118,163.39,163.38,32.73]
[1752519092258,33.02562862,163.39,163.38,32.73]
[1752519095480,28.95996118,163.39,163.38,32.73]
[1752519097083,28.95996118,163.39,163.38,24.73]
[1752519100067,36.0,163.37,163.36,26.43]
[1752519100368,10.0,163.29,163.27,0.7]
[1752519100566,10.0,163.28,163.27,0.7]
[1752519100881,10.0,163.28,163.27,32.54]
[1752519101286,10.0,163.28,163.27,33.24]
[1752519104689,10.0,163.28,163.24,0.7]
[1752519104690,10.0,163.26,163.24,0.7]
[1752519104893,10.0,163.24,163.22,0.7]
[1752519105193,10.0,163.22,163.2,26.42]
[1752519105396,10.0,163.22,163.21,32.48]
[1752519105601,10.0,163.22,163.21,33.18]
[1752519106690,10.0,163.22,163.21,32.48]
[1752519106871,10.0,163.22,163.21,33.18]
[1752519107275,10.0,163.23,163.21,33.18]
[1752519107496,10.0,163.22,163.21,32.48]
[1752519107679,10.0,163.22,163.21,50.15877192]
[1752519107879,10.0,163.22,163.21,32.48]
[1752519108080,10.0,163.22,163.21,33.18]
[1752519108376,10.0,163.21,163.2,26.42]
[1752519108562,10.0,163.21,163.2,59.7]
[1752519108762,10.0,163.23,163.2,65.82745098]
[1752519108962,10.0,163.23,163.21,12.25177878]
[1752519109165,0.61154597,163.25,163.21,12.25177878]
[1752519109166,10.0,163.22,163.21,11.55177878]
[1752519109398,10.0,163.22,163.21,32.78]
[1752519109697,10.0,163.23,163.21,45.03177878]